bitfinex/quotes_ETHUSD_20220106
["timestamp","ask_amount","ask_price","bid_price","bid_amount"]
[1641445054833,0.00113685,3454.2,3453.3,0.00397896]
[1641445055033,2.11236849,3454.4,3453.3,0.00397896]
[1641445055034,1.04277104,3453.6,3453.3,0.00397896]
[1641445055340,7.51826805,3455.0,3453.6,3.62431]
[1641445055538,3.9483,3457.6,3455.3,0.8717]
[1641445055737,3.9483,3457.6,3455.6,0.8717]
[1641445055738,3.40140812,3457.5,3455.6,0.8717]
[1641445055934,16.95,3457.4,3455.6,0.8717]
[1641445056138,7.35555194,3455.7,3455.6,0.8717]
[1641445056534,7.36350987,3455.7,3455.6,0.8717]
[1641445057179,3.03575615,3455.7,3455.6,0.8717]
[1641445059281,17.35,3455.6,3455.2,0.3]
[1641445059481,17.65,3455.6,3455.2,0.3]
[1641445059680,0.00682108,3455.5,3455.2,0.3]
[1641445060081,0.00625266,3455.4,3455.2,0.3]
[1641445060481,11.35568424,3455.3,3455.2,0.3]
[1641445060930,0.0526,3456.4,3455.4,17.35]
[1641445061129,2.1710383,3456.9,3456.3,0.01290134]
[1641445061130,1.0,3456.9,3456.3,0.01290134]
[1641445061334,7.472,3457.9,3456.3,0.71050134]
[1641445061527,2.35509905,3458.4,3456.3,0.71050134]
[1641445061729,0.30977901,3458.2,3455.6,3.14968944]
[1641445062026,0.30977901,3458.2,3454.6,1.0]
[1641445062027,1.02132,3456.5,3455.7,0.01250532]
[1641445062429,1.02132,3456.5,3455.2,0.01534744]
[1641445062626,1.02132,3456.5,3455.0,0.01648428]
[1641445063126,3.86,3456.9,3455.0,0.01648428]
[1641445063127,2.25169252,3455.2,3455.0,0.01648428]
[1641445063528,2.25169252,3455.2,3454.9,0.01705271]
[1641445064373,2.25169252,3455.2,3454.6,0.01875798]
[1641445064775,2.2435783,3455.2,3454.6,0.01875798]
[1641445065981,2.24512586,3455.2,3454.6,0.01875798]
[1641445066178,2.24512586,3455.2,3454.4,0.36489482]
[1641445066380,2.24512586,3455.2,3454.5,0.0193264]
[1641445066781,2.24512586,3455.2,3454.3,0.1381471]
[1641445066782,2.24512586,3455.2,3454.4,0.01989482]
[1641445066984,4.01856893,3455.1,3454.4,0.01989482]
[1641445067180,4.01856893,3455.1,3453.6,0.02444221]
[1641445067381,1.0,3455.0,3453.5,0.02501064]
[1641445067581,1.3,3455.0,3453.5,0.02501064]
[1641445067882,0.7239138,3454.9,3453.2,0.02671591]
[1641445068129,0.00154756,3455.2,3453.9,0.01218091]
[1641445068331,0.00154756,3455.2,3453.9,0.35718091]
[1641445068534,0.00154756,3455.2,3454.0,0.74584852]
[1641445068932,1.77840997,3454.3,3454.1,0.0216001]
[1641445069731,1.2702015,3454.6,3454.1,0.0216001]
[1641445069932,1.2702015,3454.6,3454.1,0.3216001]
[1641445070131,1.2702015,3454.6,3454.1,0.0216001]
[1641445070336,0.00154756,3455.2,3454.2,0.02103167]
[1641445070533,0.00154756,3455.2,3454.3,0.72363]
[1641445070935,0.00154756,3455.2,3454.4,0.32377244]
[1641445071134,2.26157931,3454.9,3454.4,2.13078889]
[1641445071336,1.31390276,3455.0,3454.5,0.0193264]
[1641445071739,1.26390276,3455.0,3454.5,0.0193264]
[1641445072395,1.60454713,3454.9,3454.5,0.0193264]
[1641445073599,0.7238952,3454.8,3454.5,0.0193264]
[1641445073798,1.60454713,3454.9,3454.5,0.0193264]
[1641445074498,1.31795305,3456.0,3454.5,0.0193264]
[1641445074699,0.09965305,3456.0,3454.5,0.0193264]
[1641445075100,0.09965305,3456.0,3454.5,1.0193264]
[1641445075299,0.09965305,3456.0,3454.5,0.0193264]
[1641445075513,0.09965305,3456.0,3454.4,1.92450024]
[1641445075514,0.09965305,3456.0,3454.6,0.01875798]
[1641445075742,0.09965305,3456.0,3454.5,0.7428964]
[1641445076143,0.09965305,3456.0,3454.6,0.01875798]
[1641445076345,1.34370204,3455.0,3454.6,0.01875798]
[1641445076543,1.34370204,3455.0,3454.5,0.0193264]
[1641445077345,1.61580512,3454.9,3454.5,0.0193264]
[1641445078245,5.52730346,3454.9,3454.5,0.0193264]
[1641445078447,0.01269618,3454.6,3453.1,6.58889835]
[1641445078646,1.04828793,3453.2,3453.1,6.55035144]
[1641445078846,3.05278123,3453.2,3453.1,6.55035144]
[1641445079382,3.05278123,3453.2,3452.6,6.65995144]
[1641445079579,2.05278123,3453.2,3452.6,6.65995144]
[1641445079779,0.5,3454.4,3452.7,0.01023162]
[1641445079979,0.8,3454.4,3452.7,0.01023162]
[1641445080181,0.3,3454.4,3452.7,0.01023162]
[1641445080382,0.7239575,3454.5,3452.7,0.01023162]
[1641445080783,2.02453126,3453.5,3452.8,0.72391]
[1641445081084,2.02453126,3453.5,3452.9,0.00909478]
[1641445081991,2.02453126,3453.5,3452.0,0.17669401]
[1641445081992,1.90649106,3452.5,3452.4,0.01193689]
[1641445082188,1.1748,3453.9,3452.3,0.01250532]
[1641445082387,1.1748,3453.9,3452.1,1.46169216]
[1641445082785,3.62162729,3453.8,3452.2,0.01307374]
[1641445082986,1.1748,3453.9,3452.3,0.72403]
[1641445083229,1.19387107,3453.0,3452.3,0.72403]
[1641445083426,1.19387107,3453.0,3452.4,0.01193689]
[1641445083633,1.19387107,3453.0,3452.5,0.724]
[1641445083830,1.1748,3453.9,3452.5,0.724]
[1641445084130,3.084,3454.2,3452.6,0.01080005]
[1641445084332,2.18585155,3453.3,3452.7,2.25305907]
[1641445084535,2.18585155,3453.3,3452.6,0.01080005]
[1641445084731,2.18585155,3453.3,3452.8,0.0096632]
[1641445084929,2.18585155,3453.3,3452.6,0.01080005]
[1641445084930,1.29179706,3453.2,3452.6,0.01080005]
[1641445085834,1.29179706,3453.2,3452.6,2.00563856]
[1641445086874,0.00108927,3453.1,3452.6,2.00563856]
[1641445087480,0.71270397,3453.3,3452.7,11.05]
[1641445087882,3.084,3454.2,3452.8,0.0096632]
[1641445088082,0.7240068,3454.3,3452.8,0.0096632]
[1641445088682,0.7240818,3453.9,3452.8,0.0096632]
[1641445089081,1.19552519,3453.2,3452.8,0.0096632]
[1641445089283,1.19552519,3453.2,3452.4,0.72403]
[1641445089482,1.19552519,3453.2,3452.5,0.01136847]
[1641445090081,1.88765715,3452.9,3452.5,0.01136847]
[1641445090740,3.98730527,3454.8,3452.7,0.01275312]
[1641445090935,0.00170527,3454.8,3454.4,0.75555672]
[1641445091335,0.00113685,3454.7,3454.4,0.75555672]
[1641445091736,2.06523903,3454.7,3454.4,0.75555672]
[1641445091936,1.13543277,3454.6,3454.4,0.75555672]
[1641445096387,0.00341054,3455.1,3454.2,2.03122879]
[1641445096589,0.32754405,3456.6,3456.2,0.39587565]
[1641445096785,0.32754405,3456.6,3456.5,0.01224228]
[1641445096985,0.32754405,3456.6,3456.2,0.39587565]
[1641445097189,0.3360704,3456.6,3456.2,0.39587565]
[1641445097387,2.95873882,3456.5,3456.2,0.39587565]
[1641445097786,0.0073895,3456.4,3456.2,0.39587565]
[1641445098232,10.30682108,3456.3,3456.2,0.39587565]
[1641445098837,10.60682108,3456.3,3456.2,0.39587565]
[1641445099236,17.60682108,3456.3,3456.2,7.565e-05]
[1641445099639,10.60682108,3456.3,3456.2,7.565e-05]
[1641445100244,0.00682108,3456.3,3456.2,3.80007565]
[1641445101240,0.00682108,3456.3,3456.2,8.90007565]
[1641445101439,0.00682108,3456.3,3456.2,3.80007565]
[1641445102075,0.00682108,3456.3,3456.2,7.565e-05]
[1641445103278,0.00682108,3456.3,3456.2,4.40007565]
[1641445104884,0.00147802,3456.6,3456.2,4.40007565]
[1641445105085,0.00147802,3456.6,3456.3,8.37323]
[1641445105285,0.00113685,3456.5,3456.4,0.72321]
[1641445105497,8.2293,3458.6,3456.6,11.7]
[1641445105730,8.2293,3458.6,3456.7,4.25875845]
[1641445105929,0.0096632,3458.2,3456.7,4.25875845]
[1641445106134,0.0096632,3458.2,3456.6,12.3699]
[1641445106335,1.88807418,3457.5,3456.8,1.70785349]
[1641445106534,1.12186425,3457.9,3456.8,1.70785349]
[1641445106742,0.34742611,3460.0,3457.1,0.01237935]
[1641445106937,1.1695,3459.8,3457.3,19.46847]
[1641445107137,1.1695,3459.8,3458.0,0.01280471]
[1641445107336,0.00284212,3458.3,3457.4,1.00227369]
[1641445107539,0.00284212,3458.3,3457.5,1.01858659]
[1641445107737,0.0022737,3458.2,3457.5,1.02029186]
[1641445107938,0.0022737,3458.2,3457.8,0.72287]
[1641445108143,0.00150184,3458.3,3457.8,0.72287]
[1641445108144,0.00170527,3458.1,3457.8,0.72287]
[1641445108538,0.00113685,3458.0,3457.8,0.72287]
[1641445108739,1.83951517,3457.9,3457.6,1.44695684]
[1641445109787,1.83951517,3457.9,3457.6,0.00113684]
[1641445110188,1.83951517,3457.9,3457.4,0.00227369]
[1641445110589,1.83951517,3457.9,3457.0,0.20454738]
[1641445110794,1.83951517,3457.9,3457.0,0.2]
[1641445110989,2.05956876,3457.3,3457.1,0.00397896]
[1641445112190,0.00170527,3458.1,3457.2,14.1]
[1641445112394,0.00170527,3458.1,3458.0,16.41222195]
[1641445112590,0.00150184,3458.3,3458.0,17.28402195]
[1641445112994,0.0022737,3458.2,3458.0,17.28402195]
[1641445113434,0.00170527,3458.1,3458.0,17.28402195]
[1641445113630,0.00170527,3458.1,3457.9,0.8718]
[1641445114032,0.00113685,3458.0,3457.9,0.8718]
[1641445114431,2.04627126,3458.0,3457.9,0.8718]
[1641445114633,2.00627126,3458.0,3457.9,0.8718]
[1641445115334,2.30627126,3458.0,3457.9,0.847]
[1641445115534,2.00627126,3458.0,3457.9,0.847]
[1641445115736,1.42333545,3458.3,3457.9,1.13547874]
[1641445115737,1.84e-06,3458.3,3457.9,1.13547874]
[1641445115945,11.84927902,3460.6,3458.2,0.01240812]
[1641445116238,11.84927902,3460.6,3458.7,0.847]
[1641445116440,3.04572546,3460.5,3458.7,0.847]
[1641445116917,3.657,3460.6,3458.7,0.847]
[1641445117515,14.7728142,3461.2,3459.2,0.72265]
[1641445117516,5.9164142,3461.2,3459.2,0.72265]
[1641445117731,3.6765,3462.0,3459.5,0.847]
[1641445117930,1.4047816,3461.5,3460.2,0.847]
[1641445118223,2.18377213,3460.5,3460.2,0.847]
[1641445118630,0.01364216,3460.4,3460.2,0.847]
[1641445119025,0.01307374,3460.3,3458.7,3.04572546]
[1641445119225,1.37040276,3459.3,3458.4,6.16119]
[1641445119523,0.00682108,3459.2,3458.4,0.72279]
[1641445119827,0.00625266,3459.1,3457.9,0.27634707]
[1641445120024,1.73065567,3458.5,3457.9,0.27634707]
[1641445120423,0.00227369,3458.4,3457.9,0.27634707]
[1641445120632,0.00227369,3458.4,3457.9,0.1381471]
[1641445120840,1.22349826,3458.1,3457.4,2.89056]
[1641445121040,1.22349826,3458.1,3457.3,0.00284211]
[1641445121242,1.22349826,3458.1,3457.5,0.00284211]
[1641445121441,1.52349826,3458.1,3457.1,0.00511581]
[1641445121837,1.51758364,3458.1,3457.1,0.00511581]
[1641445122039,1.07309821,3457.5,3457.1,0.00511581]
[1641445122641,17.3,3457.4,3457.0,1.581e-05]
[1641445123041,0.00113685,3457.3,3457.0,1.581e-05]
[1641445123244,1.78398224,3456.4,3455.6,2.88907416]
[1641445123443,3.66793685,3457.3,3455.5,1.74003577]
[1641445123643,3.66793685,3457.3,3455.7,0.00795793]
[1641445124043,1.31272491,3456.7,3455.7,0.00795793]
[1641445124242,1.26272491,3456.7,3455.7,0.00795793]
[1641445124485,2.00816884,3456.3,3455.7,0.00795793]
[1641445125290,0.345,3456.2,3455.5,0.00909478]
[1641445125491,1.22142397,3456.1,3455.4,0.0096632]
[1641445125690,0.7236857,3456.0,3454.4,0.01534743]
[1641445125889,0.7236857,3456.0,3454.5,1.88017239]
[1641445125890,1.25319496,3455.5,3454.5,1.88017239]
[1641445126289,1.24349848,3455.5,3454.6,0.01421059]
[1641445127690,1.24349848,3455.5,3454.5,2.46797298]
[1641445127990,0.00454739,3455.4,3454.6,17.3]
[1641445128231,1.05320361,3455.7,3454.7,6.6]
[1641445128433,1.05320361,3455.7,3454.7,6.60397896]
[1641445128636,0.00113685,3455.6,3455.2,1.80701725]
[1641445128836,0.00113685,3455.6,3454.7,6.60397896]
[1641445129238,0.00209526,3455.6,3454.7,6.60397896]
[1641445129839,0.00209526,3455.6,3455.1,1.96969789]
[1641445130239,0.00209526,3455.6,3455.2,0.00113685]
[1641445131040,1.7920921,3457.0,3455.3,10.15]
[1641445131242,1.7920921,3457.0,3456.0,1.78306773]
[1641445131243,1.63390367,3456.8,3456.0,1.78306773]
[1641445131445,1.02921585,3456.5,3455.4,0.00113685]
[1641445131882,0.00454738,3456.4,3455.4,0.00113685]
[1641445132285,1.02921585,3456.5,3455.4,0.72456685]
[1641445132286,0.00397896,3456.3,3455.4,0.72456685]
[1641445132683,0.00341054,3456.2,3455.7,1.90025091]
[1641445133087,0.00284211,3456.1,3455.4,0.00113685]
[1641445133487,0.00227369,3456.0,3454.8,0.00454739]
[1641445133888,0.00170527,3455.9,3454.8,0.00454739]
[1641445134088,3.3092311,3455.8,3454.8,0.00454739]
[1641445134292,1.35681465,3454.8,3454.5,0.00625266]
[1641445134490,1.35681465,3454.8,3453.9,0.27634707]
[1641445134491,1.35681465,3454.8,3454.1,0.00852636]
[1641445134891,1.35681465,3454.8,3454.0,0.00909478]
[1641445135092,1.89614847,3454.5,3454.0,0.00909478]
[1641445136338,1.40082075,3454.2,3454.0,0.11315688]
[1641445136540,1.40082075,3454.2,3454.0,0.00909478]
[1641445136741,1.40082075,3454.2,3453.6,10.75]
[1641445136943,1.40082075,3454.2,3453.8,0.01023163]
[1641445137438,1.89614847,3454.5,3453.8,0.01023163]
[1641445137439,1.75668485,3455.0,3453.8,0.01023163]
[1641445137639,1.31294948,3454.1,3453.8,0.01023163]
[1641445137838,0.00511581,3454.9,3453.8,0.01023163]
[1641445138041,0.00511581,3454.9,3453.8,0.00113685]
[1641445138242,0.00454739,3454.8,3453.8,0.00113685]
[1641445138441,0.7239935,3454.6,3453.8,0.00113685]
[1641445138645,0.3,3454.5,3453.8,0.00113685]
[1641445138845,0.30284212,3454.5,3453.8,0.00113685]
[1641445139047,0.0022737,3454.4,3453.8,0.00113685]
[1641445139488,1.21788614,3454.3,3453.8,0.00113685]
[1641445139683,16.11592504,3453.9,3453.8,0.00113685]
[1641445140283,1.66592504,3453.9,3453.8,0.00113685]
[1641445140482,1.66146304,3453.9,3453.8,0.00113685]
[1641445140884,14.11146304,3453.9,3453.8,0.00113685]
[1641445141087,14.11146304,3453.9,3452.0,2.98883552]
[1641445141088,1.66146304,3453.9,3452.0,2.98883552]
[1641445141284,1.66146304,3453.9,3452.0,0.01250948]
[1641445141285,1.96146304,3453.9,3452.0,0.01250948]
[1641445141486,1.96146304,3453.9,3452.1,0.00966319]
[1641445141686,1.86146304,3453.9,3452.1,0.00966319]
[1641445141885,1.86146304,3453.9,3452.2,2.12102622]
[1641445141886,2.25144763,3453.1,3452.2,2.12102622]
[1641445142192,2.25144763,3453.1,3452.3,0.00852635]
[1641445142193,1.045545,3452.8,3452.3,0.00852635]
[1641445142389,0.7241309,3454.0,3452.3,0.00852635]
[1641445142588,0.345,3454.1,3452.3,0.00852635]
[1641445142787,0.00113685,3454.0,3452.3,0.00852635]
[1641445142990,0.00113685,3454.0,3452.3,3.54244902]
[1641445143437,1.18205465,3453.3,3452.4,0.00795792]
[1641445143638,2.10685189,3453.4,3452.4,0.00795792]
[1641445143835,2.10685189,3453.4,3452.3,0.00852635]
[1641445144036,0.00113685,3454.0,3452.3,0.73262635]
[1641445144239,0.00113685,3454.0,3452.4,4.42953968]
[1641445144437,0.00113685,3454.0,3452.7,0.01249725]
[1641445144636,1.23083953,3453.9,3452.7,0.01249725]
[1641445144840,1.23083953,3453.9,3452.8,0.00568423]
[1641445145039,1.23083953,3453.9,3453.1,1.44775]
[1641445145237,1.86853683,3453.8,3453.1,1.44775]
[1641445145436,1.23083953,3453.9,3453.2,0.00341054]
[1641445146041,1.23083953,3453.9,3453.0,0.72397]
[1641445146439,1.23083953,3453.9,3453.1,0.00397896]
[1641445146640,1.76098966,3453.6,3453.0,0.67794896]
[1641445146888,1.76098966,3453.6,3452.7,0.72399]
[1641445147095,0.00227369,3453.5,3452.7,0.72399]
[1641445147293,0.00227369,3453.5,3452.8,0.00170527]
[1641445147499,1.74569493,3453.6,3452.8,0.00170527]
[1641445147793,1.17242959,3453.3,3452.8,0.00341054]
[1641445148194,1.17242959,3453.3,3452.7,0.00397896]
[1641445148393,1.74569493,3453.6,3452.7,0.00397896]
[1641445148594,1.74569493,3453.6,3452.8,2.21891908]
[1641445148794,2.39,3454.7,3453.0,0.72396]
[1641445148996,0.723956,3454.9,3453.3,0.0127839]
[1641445149194,0.00568424,3454.4,3453.3,0.0127839]
[1641445149593,0.00511581,3454.3,3453.3,0.0127839]
[1641445149998,3.7835,3455.1,3453.3,0.0127839]
[1641445149999,2.16741869,3454.2,3453.3,0.0127839]
[1641445150295,0.00397896,3454.1,3453.3,0.0127839]
[1641445150493,0.00397896,3454.1,3453.3,1.0127839]
[1641445150733,2.1628713,3454.2,3453.3,1.0127839]
[1641445150734,2.15653694,3454.2,3453.4,10.02385]
[1641445151132,2.15653694,3454.2,3453.5,0.00284212]
[1641445151932,1.11449314,3454.5,3453.5,0.00284212]
[1641445152134,3.7835,3455.1,3453.5,0.00284212]
[1641445152346,7.1454,3455.9,3453.5,0.00284212]
[1641445152347,0.0022737,3454.4,3454.0,1.44747]
[1641445152542,0.345,3456.3,3454.0,1.44747]
[1641445152543,13.6252,3456.7,3454.2,0.01252703]
[1641445152938,0.00966319,3456.1,3454.2,0.01252703]
[1641445153137,1.87463824,3455.6,3454.7,2.15548894]
[1641445153337,1.27735473,3455.7,3454.7,2.15548894]
[1641445153538,0.00625265,3455.5,3454.3,1.0]
[1641445153740,0.00682108,3455.6,3454.9,0.72357]
[1641445153939,1.27735473,3455.7,3454.9,0.72357]
[1641445153940,0.00568423,3455.4,3454.9,0.72357]
[1641445154139,0.00625265,3455.5,3454.9,0.72357]
[1641445154387,10.70727054,3456.7,3454.9,0.72357]
[1641445154582,10.70727054,3456.7,3455.0,0.00170528]
[1641445154583,2.18590438,3455.7,3455.0,0.00170528]
[1641445154782,0.00170527,3455.6,3455.0,0.00170528]
[1641445155187,2.18590438,3455.7,3455.0,0.00170528]
[1641445155188,0.00113684,3455.5,3455.0,0.00170528]
[1641445155381,0.00113684,3455.5,3454.2,0.01252703]
[1641445155382,1.06137481,3455.4,3454.6,0.00397897]
[1641445155582,1.15996658,3454.8,3454.3,0.00568424]
[1641445155780,1.15996658,3454.8,3454.2,0.00625266]
[1641445156584,0.00113684,3455.5,3454.2,0.00625266]
[1641445156783,0.00113684,3455.5,3454.4,1.64654261]
[1641445157182,0.00113684,3455.5,3454.5,0.00454739]
[1641445157886,0.00113684,3455.5,3454.7,0.72362]
[1641445158335,0.00113684,3455.5,3454.8,0.00284212]
[1641445158940,1.39640992,3455.2,3454.5,1.30454739]
[1641445159142,1.39640992,3455.2,3454.6,0.00397897]
[1641445159541,1.39640992,3455.2,3454.5,0.00454739]
[1641445160643,1.39640992,3455.2,3454.2,0.00625266]
[1641445161046,1.39722,3455.2,3454.2,0.00625266]
[1641445161648,0.00081008,3455.2,3454.4,0.72366]
[1641445161883,0.00081008,3455.2,3454.2,0.00625266]
[1641445162085,0.00081008,3455.2,3454.5,0.00454739]
[1641445162385,0.00081008,3455.2,3454.8,1.87931492]
[1641445162789,0.00081008,3455.2,3454.9,0.0022737]
[1641445164290,15.13816582,3457.0,3455.0,13.7]
[1641445164492,15.43816582,3457.0,3455.0,14.0]
[1641445164691,1.08444446,3455.8,3455.1,1.00227369]
[1641445165092,0.00113685,3455.7,3455.2,0.00170527]
[1641445166153,0.00113685,3455.7,3454.9,0.00341054]
[1641445167958,0.88673685,3455.7,3454.9,0.00341054]
[1641445168156,2.29675755,3455.6,3454.8,0.00397896]
[1641445168361,19.54675755,3455.6,3454.4,0.00625265]
[1641445168555,20.54675755,3455.6,3453.8,0.0096632]
[1641445168754,1.22476302,3454.3,3453.6,0.01080004]
[1641445169409,1.22476302,3454.3,3453.4,3.52874635]
[1641445169608,1.22476302,3454.3,3453.5,1.44762]
[1641445169810,1.22476302,3454.3,3453.5,2.18281847]
[1641445170008,0.7238389,3455.4,3453.6,0.01080004]
[1641445170209,16.95,3455.2,3453.6,0.01080004]
[1641445170409,0.345,3455.2,3453.6,0.01080004]
[1641445170610,0.645,3455.2,3453.6,0.72387]
[1641445171013,1.27681978,3454.3,3453.7,0.01023162]
[1641445171616,1.27681978,3454.3,3453.4,0.01193689]
[1641445171811,2.76291978,3454.3,3452.9,0.01477901]
[1641445172111,2.76291978,3454.3,3452.8,0.01534743]
[1641445172411,1.37833346,3453.1,3452.8,0.01534743]
[1641445173738,5.85638599,3452.9,3452.8,0.01534743]
[1641445174139,1.37833346,3453.1,3452.8,0.01534743]
[1641445174341,17.5594,3454.2,3452.8,0.01534743]
[1641445174542,4.274,3454.2,3452.8,0.01534743]
[1641445174740,3.0248,3454.2,3453.2,2.17174]
[1641445174939,0.345,3454.8,3453.2,1.44778]
[1641445175140,0.345,3454.8,3453.3,0.73644531]
[1641445175339,0.345,3454.8,3453.3,0.01250531]
[1641445175340,1.25419302,3453.6,3453.3,0.01250531]
[1641445175539,1.25419302,3453.6,3452.7,0.182041]
[1641445175540,1.25419302,3453.6,3453.4,0.01193689]
[1641445175741,1.25419302,3453.6,3452.8,0.01534743]
[1641445176344,2.85790742,3453.6,3452.8,0.01534743]
[1641445176540,1.61588446,3453.5,3452.8,0.01534743]
[1641445177192,3.17062293,3452.9,3452.8,0.01534743]
[1641445177591,1.07670621,3452.9,3452.8,0.01534743]
[1641445178397,0.92670621,3452.9,3452.8,4.11534743]
[1641445178598,0.92670621,3452.9,3452.8,0.01534743]
[1641445179196,1.07746035,3452.9,3452.8,0.01534743]
[1641445180001,1.37746035,3452.9,3452.8,0.01534743]
[1641445180198,7.32746035,3452.9,3452.8,4.743e-05]
[1641445180401,18.57746035,3452.9,3452.8,4.743e-05]
[1641445180640,18.57746035,3452.9,3452.7,8.843e-05]
[1641445180641,17.2,3452.8,3452.7,8.843e-05]
[1641445181648,20.02690805,3452.8,3452.7,8.843e-05]
[1641445181847,19.6925,3452.8,3452.7,8.843e-05]
[1641445182449,37.1425,3452.8,3450.6,6.30839564]
[1641445182648,0.7246575,3451.8,3450.6,6.30839564]
[1641445182846,1.6928575,3451.8,3450.7,0.01193689]
[1641445183047,1.92475747,3451.0,3450.7,0.01193689]
[1641445184147,1.38679929,3450.8,3450.2,0.01477901]
[1641445184986,0.7246575,3451.8,3450.2,0.01477901]
[1641445185196,0.7246575,3451.8,3450.4,1.44911]
[1641445185397,0.7246575,3451.8,3450.6,0.01267145]
[1641445185398,0.3,3451.8,3450.6,0.01267145]
[1641445185591,0.645,3451.9,3450.6,0.01267145]
[1641445185790,0.645,3451.9,3450.9,2.55863788]
[1641445185993,36.5209,3452.7,3451.0,3.39060229]
[1641445185994,19.5709,3452.7,3451.0,3.39060229]
[1641445186196,1.71045072,3452.1,3451.2,2.01187318]
[1641445186396,0.645,3452.8,3451.5,0.72433]
[1641445186793,0.345,3452.8,3451.6,0.00682108]
[1641445187193,1.874988,3452.6,3451.6,0.00682108]
[1641445187394,1.16102414,3452.4,3451.6,0.00682108]
[1641445187598,1.16102414,3452.4,3451.6,0.73111108]
[1641445187797,1.874988,3452.6,3451.6,0.73111108]
[1641445187997,1.0693188,3453.1,3451.7,0.00625266]
[1641445188248,1.3693188,3453.1,3451.7,0.00625266]
[1641445188452,0.00113685,3453.0,3451.7,0.00625266]
[1641445188850,1.30875297,3452.4,3451.7,0.00625266]
[1641445189355,0.00113685,3453.0,3451.7,0.73051266]
[1641445189776,0.00113685,3453.0,3451.9,0.72423]
[1641445190150,0.00113685,3453.0,3452.0,0.00454739]
[1641445190350,1.16793494,3452.8,3452.1,1.8570984]
[1641445190551,1.16793494,3452.8,3452.0,0.00454739]
[1641445190751,1.16793494,3452.8,3452.2,0.00341054]
[1641445190952,1.16793494,3452.8,3452.0,0.00454739]
[1641445191552,1.16793494,3452.8,3452.1,1.95638624]
[1641445191752,1.16793494,3452.8,3452.3,0.72417]
[1641445191995,1.46793494,3452.8,3452.3,0.72417]
[1641445192191,1.46793494,3452.8,3452.4,0.00227369]
[1641445192393,0.00113685,3453.0,3452.4,0.00227369]
[1641445193594,0.00113685,3453.0,3452.2,0.00341054]
[1641445193795,1.76958527,3453.0,3452.2,0.00341054]
[1641445194096,2.06958527,3453.0,3452.1,0.00397896]
[1641445194295,1.92458527,3453.0,3452.1,0.00397896]
[1641445194498,1.92458527,3453.0,3451.8,0.00568423]
[1641445194694,1.92458527,3453.0,3451.7,0.00625266]
[1641445194894,1.26729521,3451.9,3451.7,0.00625266]
[1641445195295,1.26729521,3451.9,3451.5,0.00738951]
[1641445195495,1.26729521,3451.9,3451.2,1.44864]
[1641445195496,1.26729521,3451.9,3451.2,1.41896142]
[1641445195738,0.00170528,3451.8,3451.1,1.44871]
[1641445195937,0.00170528,3451.8,3451.3,0.00113684]
[1641445196137,0.00113685,3451.7,3451.2,0.00170527]
[1641445196338,0.00113685,3451.7,3451.2,0.72610527]
[1641445196541,0.00170528,3451.8,3451.2,0.72610527]
[1641445196738,0.345,3452.7,3451.3,16.22435]
[1641445196943,0.345,3452.7,3451.3,16.22719212]
[1641445197147,0.00454738,3452.6,3451.4,0.0022737]
[1641445197343,1.78890997,3452.2,3451.4,0.0022737]
[1641445197547,1.17079439,3452.1,3451.4,0.0022737]
[1641445197742,1.17249966,3452.1,3451.4,0.0022737]
[1641445197942,0.00113684,3452.0,3451.4,0.0022737]
[1641445199047,0.23704206,3450.8,3449.7,7.74426633]
[1641445199244,1.14234206,3450.8,3449.7,6.74426633]
[1641445199492,1.44234206,3450.8,3449.8,0.00909477]
[1641445199699,1.14234206,3450.8,3449.8,0.00909477]
[1641445199895,1.08420899,3450.6,3449.9,1.66488077]
[1641445200092,1.02722899,3450.6,3449.9,1.66488077]
[1641445200293,1.02722899,3450.6,3450.0,0.00795793]
[1641445201895,0.23704206,3450.8,3450.0,0.00795793]
[1641445202102,0.23704206,3450.8,3450.2,1.44893]
[1641445202303,0.00284212,3451.9,3450.4,17.2]
[1641445202596,0.00284212,3451.9,3450.5,3.76276075]
[1641445202997,3.03722173,3451.9,3451.0,2.27761711]
[1641445203240,3.03722173,3451.9,3450.4,17.5]
[1641445203442,3.03722173,3451.9,3450.3,0.01262419]
[1641445203643,17.295,3451.8,3449.4,3.36959772]
[1641445204043,17.295,3451.8,3449.3,3.7653031]
[1641445204245,17.295,3451.8,3449.3,3.52695437]
[1641445204443,2.24572256,3450.9,3450.0,2.10682587]
[1641445204644,1.23184779,3450.8,3450.0,0.00795793]
[1641445204848,2.24572256,3450.9,3450.0,0.00795793]
[1641445204849,0.3,3450.9,3450.0,0.00795793]
[1641445205046,0.3,3450.9,3450.0,0.73255793]
[1641445205445,3.965,3451.7,3450.0,0.73255793]
[1641445205645,1.0,3451.6,3450.0,0.73255793]
[1641445205847,0.00284212,3451.9,3450.1,6.50333379]
[1641445206146,0.00284212,3451.9,3451.5,2.25673694]
[1641445206347,0.00284212,3451.9,3450.7,3.85545448]
[1641445206547,0.00284212,3451.9,3450.7,4.15545448]
[1641445206992,0.00284212,3451.9,3451.2,0.72436]
[1641445207193,0.00284212,3451.9,3451.3,4.11662539]
[1641445207396,0.00284212,3451.9,3451.3,4.11371493]
[1641445207593,0.00284212,3451.9,3451.4,2.93736929]
[1641445207794,0.00284212,3451.9,3451.5,3.26224707]
[1641445207994,0.5,3453.6,3451.6,1.3]
[1641445208195,0.295,3453.5,3452.0,0.72419]
[1641445208395,0.295,3453.5,3452.1,3.28620598]
[1641445208595,0.01136847,3453.4,3452.1,3.28620598]
[1641445208795,0.01136847,3453.4,3452.6,1.87273655]
[1641445208996,1.0192135,3453.5,3452.6,1.87273655]
[1641445208997,0.93058197,3453.5,3452.6,1.87273655]
[1641445209196,0.345,3454.0,3452.7,0.00397896]
[1641445209399,0.05288434,3453.0,3452.7,0.00397896]
[1641445210940,0.05288434,3453.0,3452.5,0.00511581]
[1641445211142,0.05288434,3453.0,3451.8,0.13819997]
[1641445211143,1.18254026,3452.6,3452.1,0.0073895]
[1641445211340,1.18254026,3452.6,3451.8,0.13819997]
[1641445211341,2.11060159,3452.3,3451.8,0.13819997]
[1641445211747,1.48254026,3452.6,3451.8,0.13819997]
[1641445212348,1.18254026,3452.6,3451.8,0.13819997]
[1641445212749,1.76697794,3452.4,3451.8,0.13819997]
[1641445212949,2.06697794,3452.4,3451.8,0.13819997]
[1641445213148,2.06697794,3452.4,3451.2,1.4606308]
[1641445213547,1.76697794,3452.4,3451.3,0.01193689]
[1641445213748,1.30147846,3452.0,3451.3,0.01193689]
[1641445214400,1.30147846,3452.0,3450.1,4.05229326]
[1641445214401,0.01290635,3451.8,3450.1,4.05229326]
[1641445214599,0.345,3451.7,3449.8,10.08829564]
[1641445214799,0.10576868,3451.6,3450.2,0.00625266]
[1641445214999,0.45247395,3451.6,3450.2,0.00625266]
[1641445215205,0.00113684,3451.5,3450.2,0.00625266]
[1641445215399,1.36618585,3450.7,3449.8,0.00852635]